Cogmind - Beta 16 @@@ ROGUE MODE // 2026.01.07 @ 19:49:05 Player: Dima4z Result: Destroyed by as-70161 with Assembled Heavy Rifle Performance ------------- Evolutions (0) 0 Regions Visited (2) 400 Robots Destroyed (7) 35 Value Destroyed (42) 42 Prototype IDs (0) 0 Alien Tech Used (0) 0 Bonus (60) 60 TOTAL SCORE: 537 Bonus ------- Follower Combat Kills 60 Cogmind --------- Core Integrity 0/250 Matter 153/300 Energy 70/100 System Corruption 0% Temperature Warning (338) Movement Core (250) Ox4 Location -10/Mines Parts ------- > --- POWER (1) -------- (None) > --- PROPULSION (2) --- (None) > --- UTILITY (2) ------ Medium Storage Unit Seismic Detector > --- WEAPON (2) ------- Medium Laser > --- INVENTORY (10) --- Light Nuclear Core Wheel Wheel Small Storage Unit Small Storage Unit Seismic Detector Medium Laser Bore Cannon Mining Laser Peak State ------------ > --- POWER ------------ Ion Engine > --- PROPULSION ------- (None) > --- UTILITY ---------- Medium Storage Unit Seismic Detector > --- WEAPON ----------- Medium Laser Bore Cannon > --- INVENTORY -------- Light Nuclear Core Wheel Wheel Small Storage Unit Small Storage Unit Seismic Detector Medium Laser Grenade Launcher Mining Laser [Rating: 10] Favorites ----------- Power Ion Engine Engine Ion Engine Propulsion Wheel Wheel Wheel Utility Seismic Detector Device Seismic Detector Storage Small Storage Unit Weapon Medium Laser Energy Gun Medium Laser Ballistic Cannon Bore Cannon Launcher Grenade Launcher Build | -11 -10 -10 ------- Run | Yrd Mat Min Slots Evolved . | . . . Power . | . . . Propulsion . | . . . Utility . | . . . Weapon . | . . . Parts Attached 12 | 8 . 4 Power 1 | 1 . . Engine 1 | 1 . . Core . | . . . Reactor . | . . . Propulsion 3 | 3 . . Treads . | . . . Leg . | . . . Wheel 3 | 3 . . Hover . | . . . Flight . | . . . Utility 3 | 2 . 1 Device 1 | 1 . . Storage 2 | 1 . 1 Processor . | . . . Hackware . | . . . Protection . | . . . Artifact . | . . . Weapon 5 | 2 . 3 Energy Gun 3 | 2 . 1 Energy Cannon . | . . . Ballistic Gun . | . . . Ballistic Cannon 1 | . . 1 Launcher 1 | . . 1 Special Weapon . | . . . Impact Weapon . | . . . Slashing Weapon . | . . . Piercing Weapon . | . . . Special Melee Weapon . | . . . Unidentified Prototypes . | . . . Parts Lost 5 | . . 5 Power 1 | . . 1 Propulsion 2 | . . 2 Utility . | . . . Weapon 2 | . . 2 Highest Loss Streak 3 | . . 3 To Critical Strikes 1 | . . 1 Average Backups 7 | 3 8 8 Power 1 | 1 2 1 Propulsion 1 | . 2 1 Utility 1 | . 2 2 Weapon 2 | 1 2 2 Tool/Special . | . . . Unused Backups 12 | 2 . 10 Power 4 | . . 4 Propulsion 3 | 1 . 2 Utility 4 | 1 . 3 Weapon 1 | . . 1 Tool/Special . | . . . Average Slot Usage (%) 96 | . 100 92 Engine 13 | . 14 13 Wheel 25 | . 28 22 Device 14 | . 14 14 Storage 14 | . 14 14 Energy Gun 26 | . 28 26 Peak Build Rating 10 | 8 8 10 Average Rating 7 | 5 8 7 On Entrance 5 | . 8 8 Avg Prop Armor Cover (%) 6 | . . 6 Naked Turns . | . . . Heaviest Build 20 | 15 15 20 Greatest Support 20 | 20 20 20 Greatest Overweight (x) 1 | 1 . 1 Average Overweight (x) . | . . . Largest Inventory Capacity 10 | 8 8 10 Average Capacity 8 | 7 8 8 Most Carried 10 | 8 8 10 Average Carried 7 | 3 8 8 Final Capacity 10 | 8 8 10 Final Carried 9 | 8 8 9 Class Distribution -------------------- 100% | Mutant Dominant Class ---------------- Mutant | -10/Materials Mutant | -10/Mines Resources | -11 -10 -10 ----------- Run | Yrd Mat Min Matter Collected 300 | 290 . 10 Remotely . | . . . Salvage Created 333 | 220 . 113 Parts 14 | 14 . . Haulers Intercepted . | . . . Recyclers Shooed . | . . . Parts Field Recycled . | . . . Retrieved Matter . | . . . Parts Self-Destructed . | . . . Prevented . | . . . Parts Restored . | . . . Kills | -11 -10 -10 ------- Run | Yrd Mat Min Combat Hostiles Destroyed 10 | . . 10 Guns 5 | . . 5 Cannons 4 | . . 4 AOE 1 | . . 1 Classes Destroyed 4 | 3 . 1 Worker 1 | 1 . . Tunneler 5 | 5 . . Recycler 1 | 1 . . Assembled 10 | . . 10 Best Kill Streak 8 | 4 . 8 Combat Bots Only 8 | . . 8 Max Kills in Single Turn 2 | 1 . 2 Gunslinging . | . . . Exploded 1 | . . 1 Melee . | . . . Uniques/NPCs Destroyed . | . . . Combat | -11 -10 -10 -------- Run | Yrd Mat Min Hostile Shots Fired 55 | . 4 51 Missed 12 | . 3 9 Hits 43 | . 1 42 Melee 6 | . . 6 Projectile 37 | . 1 36 Critical Strikes 2 | . . 2 Part Disruptions 1 | . . 1 Damage Taken 765 | . 10 755 Core 258 | . . 258 Absorbed by Shields . | . . . Core Remaining (%) 100 | 100 . . Volleys Fired 52 | 16 . 36 Largest 2 | 2 . 2 Hottest 100 | 100 . 100 Shots Fired 84 | 32 . 52 Gun 76 | 32 . 44 Cannon 6 | . . 6 Launcher 2 | . . 2 Special . | . . . Kinetic 6 | . . 6 Thermal 76 | 32 . 44 Explosive 2 | . . 2 Electromagnetic . | . . . Robot Hit Streak 6 | 6 . 4 Robot Miss Streak 4 | 2 . 4 Penetration Max 1 | . . 1 Secondary Targets 2 | . . 2 Max Gunslinging Chain 1 | . . 1 Shots Hit Robots 39 | 19 . 20 Core Hits 24 | 8 . 16 Critical Kills 1 | . . 1 Critical Parts Destroyed 1 | . . 1 Critical Strikes 9 | 5 . 4 Burn 7 | 5 . 2 Destroy 2 | . . 2 Melee Attacks . | . . . Impact . | . . . Slashing . | . . . Piercing . | . . . Sneak Attacks . | . . . Combat Hostiles . | . . . Follow-up Attacks . | . . . Damage Inflicted 650 | 248 . 402 Guns 462 | 248 . 214 Cannons 120 | . . 120 Explosions 68 | . . 68 Melee . | . . . Ramming . | . . . Kinetic 120 | . . 120 Thermal 462 | 248 . 214 Explosive 68 | . . 68 Electromagnetic . | . . . Impact . | . . . Slashing . | . . . Piercing . | . . . Highest Corruption . | . . . Average Corruption . | . . . Corruption Purged . | . . . Corruption Blocked . | . . . Overload Shots . | . . . Overflow Damage 9 | . . 9 Projectiles . | . . . Explosions 9 | . . 9 Melee . | . . . Knockbacks 1 | . . 1 Impact . | . . . Kinetic 1 | . . 1 Secondary . | . . . Self-Inflicted Damage 21 | . . 21 Shots 1 | . . 1 Rammed . | . . . Targets Rammed . | . . . Kicked . | . . . Crushed . | . . . Highest Temperature 536 | 234 . 536 Average Temperature 228 | 77 . 340 Received Heat Transfer 72 | . 6 66 Effects 13 | . . 13 Shutdowns 2 | . . 2 Energy Bleed 2 | . . 2 Interference 2 | . . 2 Matter Decay 2 | . . 2 Short Circuit 3 | . . 3 Damage (minor) 1 | . . 1 Damage (core) 1 | . . 1 Siege Activations . | . . . Martial Activations . | . . . Shielding Activations . | . . . Robots Disrupted . | . . . Combat Hostiles . | . . . Robots Corrupted . | . . . Combat Hostiles . | . . . Parts Fried . | . . . Impact Corruptions . | . . . Robots Melted . | . . . Combat Hostiles . | . . . Parts Melted 4 | 4 . . Heat Transferred 1887 | 1110 . 777 Parts Sabotaged . | . . . Parts Stolen . | . . . Parts Stripped . | . . . Power Chain Reactions . | . . . Alert | -11 -10 -10 ------- Run | Yrd Mat Min Maximum Alert Level . | . . . Low Security (%) 100 | 100 100 100 Level 1 . | . . . Level 2 . | . . . Level 3 . | . . . Level 4 . | . . . Level 5 . | . . . High Security . | . . . Max Security . | . . . Peak Influence 53 | 10 . 53 Initial . | . . . Average 4 | 1 . 10 Influence Increases 127 | 35 . 92 Destroy 0b10 Robot/C 40 | . . 40 Destroy 0b10 Robot/NC 35 | 35 . . Destroy Leader 10 | . . 10 Allied During Kill 8 | . . 8 Destroy Structure 19 | . . 19 Lose Combat Pursuer 15 | . . 15 Influence Decreases 127 | 35 . 92 Time Decay 117 | 35 . 82 Lost Part 10 | . . 10 Squads Dispatched . | . . . Investigation . | . . . Extermination . | . . . Reinforcement . | . . . Assault . | . . . Garrison . | . . . Intercept . | . . . Searches Triggered . | . . . Construction Impeded . | . . . Haulers Reinforced . | . . . Active Scanning Responses . | . . . Cargo Convoy Interrupts . | . . . Stealth | -11 -10 -10 --------- Run | Yrd Mat Min Distress Signals . | . . . Communications Jammed . | . . . Distress Signals . | . . . Times Spotted 22 | . 2 20 Peak Tracking Total 12 | . 2 12 Tactical Retreats 3 | . . 3 Traps | -11 -10 -10 ------- Run | Yrd Mat Min Traps Triggered . | . . . Indirectly . | . . . Trap Hack Attempts . | . . . Triggered . | . . . Disarmed . | . . . Reprogrammed . | . . . Reused . | . . . Traps Extracted . | . . . Installed . | . . . Triggered . | . . . Machines | -11 -10 -10 ---------- Run | Yrd Mat Min Machines Disabled . | . . . Max in Single Turn . | . . . Machines Repaired . | . . . Machines Dismantled . | . . . Machines Sabotaged . | . . . Overloaded Fab Kills . | . . . Hacking | -11 -10 -10 --------- Run | Yrd Mat Min Machines Accessed 1 | . 1 . Terminals 1 | . 1 . Fabricators . | . . . Repair Stations . | . . . Recycling Units . | . . . Scanalyzers . | . . . Garrison Access . | . . . Total Hacks 3 | . 3 . Successful . | . . . Failed 3 | . 3 . Catastrophic . | . . . Database Lockouts . | . . . Manual 3 | . 3 . Terminals 3 | . 3 . Fabricators . | . . . Repair Stations . | . . . Recycling Units . | . . . Scanalyzers . | . . . Garrison Access . | . . . Terminal Hacks . | . . . Fabricator Hacks . | . . . Repair Station Hacks . | . . . Recycling Unit Hacks . | . . . Scanalyzer . | . . . Garrison Access Hacks . | . . . Unauthorized Hacks . | . . . Terminals . | . . . Fabricators . | . . . Repair Stations . | . . . Recycling Units . | . . . Scanalyzers . | . . . Garrison Access . | . . . Data Cores Recovered . | . . . Used . | . . . Hacking Detections 1 | . 1 . Full Trace Events 1 | . 1 . Feedback Events . | . . . Feedback Blocked . | . . . Robot Schematics Acquired . | . . . Robots Built . | . . . Authchips . | . . . Time . | . . . Total Robot Build Rating . | . . . Part Schematics Acquired . | . . . Parts Built . | . . . Authchips . | . . . Time . | . . . Total Part Build Rating . | . . . Part Studies Acquired . | . . . Parts Repaired . | . . . Time . | . . . Parts Recycled . | . . . Recycled Matter . | . . . Retrieved Matter . | . . . Retrieved Components . | . . . Parts Scanalyzed . | . . . Part Schematics Acquired . | . . . Parts Damaged . | . . . Bothacking | -11 -10 -10 ------------ Run | Yrd Mat Min Used RIF Installer . | . . . Robots Hacked . | . . . Non-combat . | . . . Combat . | . . . Robot Hacks Applied . | . . . Relay Couplers Released . | . . . Fabnet Peak Effective % . | . . . Robots Rewired . | . . . Allies Hacked . | . . . Hacks Repelled . | . . . Allies | -11 -10 -10 -------- Run | Yrd Mat Min Total Allies 3 | . . 3 Largest Group 3 | . . 3 Highest-Rated Group 40 | . . 40 Highest-Rated Ally 16 | . . 16 Total Orders . | . . . Ally Attacks 12 | . . 12 Total Damage 164 | . . 164 Kills 2 | . . 2 Allies Corrupted . | . . . Allies Melted . | . . . Intel | -11 -10 -10 ------- Run | Yrd Mat Min Active Infowar (turns) 801 | 30 404 367 Seismic 801 | 30 404 367 Robot Analysis Total . | . . . Derelict Logs Recovered . | . . . Drone Launches . | . . . Drone Recoveries . | . . . Exploration | -11 -10 -10 ------------- Run | Yrd Mat Min Turns Passed 1019 | 211 404 404 Spaces Moved 567 | 164 116 287 Core 10 | 10 . . Treads . | . . . Legs . | . . . Wheels 557 | 154 116 287 Hover . | . . . Flight . | . . . Fastest Speed 50 | 50 80 80 Average Speed 80 | 80 80 80 Slowest Speed 95 | 95 80 95 Overloaded Moves . | . . . Propulsion Burnouts . | . . . Robots Hopped . | . . . Potential Cave-ins . | . . . Cave-ins Triggered . | . . . Exploration Rate (%) 24 | 7 16 49 Regions Visited 2 Branch Regions 1 Pre-discovered Areas . | . . . Known Exits Taken . | . . . Unknown Exits Taken 2 | 1 1 . Scrap Searched 1 | . . 1 Spaces Dug . | . . . Terrain Destroyed 24 | . . 24 Melee . | . . . Projectile 3 | . . 3 AOE 21 | . . 21 Terrain Rammed . | . . . Walls Destroyed . | . . . Machines Disabled . | . . . Actions | -11 -10 -10 --------- Run | Yrd Mat Min Total 1051 | 214 426 411 Wait 381 | . 311 70 Move 565 | 163 115 287 Hop . | . . . Pick Up 27 | 20 . 7 Fast Attach . | . . . Attach 11 | 9 . 2 Detach 2 | 1 . 1 Swap 3 | . . 3 Drop 10 | 5 . 5 Fire 52 | 16 . 36 Melee . | . . . Ram . | . . . Kick . | . . . Crush . | . . . Escape Stasis . | . . . Rewire . | . . . Trap . | . . . Miscellaneous . | . . . Route ------- -11/Scrapyard -10/Materials (discovered 2 exits: [*Min x2]) -10/Mines (discovered 1 exit: [*Mat]) History --------- Turn | Location | Event 19 | -11/Scrapyard | Discovered new exit (range 16) 212 | -11/Scrapyard | Entered Materials 212 | -10/Materials | Discovered new exit (range 8) 249 | -10/Materials | Discovered new exit (range 12) 308 | -10/Materials | Build established: Mutant 616 | -10/Materials | Entered Mines 623 | -10/Mines | Assisted by bots powering up and referring to "LRC-V3" 836 | -10/Mines | Discovered new exit (range 6) 886 | -10/Mines | Assembled infested the area 905 | -10/Mines | A weapon hastily lodged in a ceiling crevice suddenly fell to the ground 936 | -10/Mines | Lost 3 allies 968 | -10/Mines | Core integrity fell below 50% 978 | -10/Mines | Lost 3 parts (2n1w) 1010 | -10/Mines | Core integrity fell below 20% 1020 | -10/Mines | Destroyed by as-70161 with Assembled Heavy Rifle Last Messages --------------- 00981_ as-38926 knocked back. 00983_ Overheating: System interference. 00983_ Seismic Detector temporarily disabled. 00983_ HV Slug penetrates as-52932. 00983_ as-52932 destroyed. 00985_ Bore Cannon broken. 00985_ Overheating: Short circuit. 00986_ Ion Engine broken. 00986_ Overheating: Short circuit. 00990_ as-16810 destroyed. 00992_ as-90281 destroyed. 00994_ Grenade Launcher destroyed. 00994_ Destroyed Grenade Launcher. 01003_ Broken Ion Engine destroyed. 01008_ as-46279 destroyed. 01009_ Med. Laser broken. 01009_ Overheating: Short circuit. 01011_ The unstable cave ceiling collapses. 01017_ Overheating: Matter decay (-18). Map ----- +----------------------------------------------------+ | | | | | | | | | | | | | | | | | ?????????????????????????????????????? | | ?????????????????????????????????????? | | ???????####??##??????????????????????? | | ??????## ## ???????????????????????? | | ?????## ????????????????????????? | | ?????# ?????????????????????????? | | ?????# #??????????????????????????? | | ??????# #???????????????????????????? | | ??????# ###?#???????????????????????? | | ????### *## ##?????????????????????? | | ???## #?????????????????????? | | ??## #?????????????????????? | | ??# ## ##????????????????????? | | ??# ## a# #????????????????????? | | ??# ##? ?????????????????????? | | ??# ##??# % #?????????????????????? | | ??## ##???# #?????????????????????? | | ???## #????# @ #?????????????????????? | | ????# #???##; ##?????????????????????? | | ????# ###?#% ??????????????????????? | | ????# ##%%###??????????????????????? | | ????### ### #????????????#???????????? | | ??????# ## #####??????? #???????????? | | ??????# # ## ##???### #####???????? | | ??????# ## #### #???????? | | ??????# #???????? | | ??????######### # #????????????? | | ??????????????## ## #????????????? | | ???????????????# ### #????????????? | | ???????????????## ##?# #????????????? | | ????????????????# ##?## #????????????? | | ???????????###### #?## ##???????????? | | ???????????# ### ##??????????? | | ???????????# ## #### ##?????????? | | ???????????# ## ### ########### | | ????????#### ## | | ???????## ###### | | ???????# #???# ############## | | ???????# < #???## #????????????# | | ???????## ##???### #????????????# | | ????????# #?????# #????????????# | | ????????# #?????# #????????????# | +----------------------------------------------------+ Best States ------------- Heat Dissipation 25 Energy Generation 10 Energy Capacity 250 Matter Stores 300 Matter Capacity 300 Sight Range 16 Terrain Scan Density 10 Evasion (%) 50 Item Schematics ----------------- None Robot Schematics ------------------ None Fabricated ------------ Nothing Repaired ---------- Nothing Studied --------- None Alien Tech Used ----------------- None Achievements -------------- Well Done Challenges ------------ None Game ------ Seed CooledDispersionStatue Manual? 0 Play Time 00:09:58 Cumulative 21.0 hours Start 2026.01.07 @ 19:39:31 End 2026.01.07 @ 19:49:05 Sessions 1 Manual Loads 0 Difficulty Rogue Special Mode None Game No. 22 Rogue 19 Adventurer 3 Explorer 0 Win Type - Total 0 Types 0/0/0/0/0/0/0/0/0/0 Lore% 9 Gallery% 27 Achievement% 17 Wizard Run 0 Options --------- Layout 1 ASCII 0 Keyboard 1 Movement Numpad Keybinds 0 Fullscreen 1 Font 48/Smallcaps Map View 50x35 Zoom Use 0% Tactical HUD 1 Map Filters NONE Filters NONE Steam 1 RUN: a8d3720d-6a8d-4689-86f1-17ec777728b6